fUSD/lending_fUSD_20250628
["ID","MTS","AMOUNT","RATE_DAILY","PERIOD"]
[368313695,1751112638093,-150.0,0.00036688,2]
[368313697,1751112638103,-150.0,0.00036688,2]
[368313699,1751112638115,-150.0,0.00036688,2]
[368313701,1751112638129,-150.69237325,0.00036688,2]
[368313703,1751112638139,-151.99114384,0.00036688,2]
[368313705,1751112638149,-233.98935785,0.00036688,2]
[368313707,1751112638158,-150.0,0.00036688,2]
[368313709,1751112638168,-150.0,0.00036688,2]
[368313711,1751112638177,-197.78518063,0.00036688,2]
[368313713,1751112638186,-153.85652674,0.00036691,2]
[368313715,1751112638195,-1342.12915116,0.00036698,2]
[368313717,1751112638204,-475.53187,0.0003674,2]
[368313719,1751112638215,-500.0,0.00036773,5]
[368313721,1751112638224,-500.0,0.00036773,5]
[368313723,1751112638234,-167.63730484,0.00036773,5]
[368313725,1751112638243,-502.20077747,0.00036773,5]
[368313727,1751112638252,-394.39958567,0.00036773,5]
[368313729,1751112638262,-396.26161844,0.00036773,5]
[368313731,1751112638271,-507.07731173,0.00036773,5]
[368313733,1751112638281,-500.0,0.00036773,5]
[368313735,1751112638290,-500.0,0.00036773,5]
[368313737,1751112638299,-302.13566492,0.00036773,5]
[368313739,1751112638308,-17116.1159872,0.0003678,7]
[368313742,1751112638328,-5786718.04815072,0.0003678,7]
[368313745,1751112638355,-5147.87098555,0.0003678,7]
[368313747,1751112638366,-1075.70780233,0.0003678,7]
[368313750,1751112638377,-1965.30427423,0.0003678,7]
[368313752,1751112638389,-1503.01795871,0.0003678,7]
[368313754,1751112638400,-256.8745783,0.0003678,7]
[368313912,1751112639871,-34216.94335501,0.0003678,7]
[368313915,1751112639883,-14452.70835809,0.0003678,7]
[368313931,1751112640030,-490.0,0.0003678,7]
[368315085,1751113268065,2217.04,7.945e-05,2]
[368315093,1751113470449,155.32,0.00013699,2]
[368315096,1751113508399,6031.86382283,0.00014,2]
[368315097,1751113508420,10000.0,0.00014,2]
[368315098,1751113508442,10000.0,0.00014,2]
[368315099,1751113508464,10000.0,0.00014,2]
[368315100,1751113508484,10000.0,0.00014,2]
[368315101,1751113508509,3919.35011344,0.00014,2]
[368315105,1751113625426,3372.4659675,0.00016435,2]
[368315162,1751113838257,-155.32,0.00020187,2]
[368315163,1751113838267,-592.5498792,0.000232,2]
[368315164,1751113838277,-155.32,0.00026676,2]
[368315165,1751113838287,-203.0,0.00027379,2]
[368315166,1751113838296,-173.69,0.00028071,2]
[368315167,1751113838306,-203.0,0.00030345,7]
[368315168,1751113838316,-155.32,0.00033165,2]
[368315169,1751113838325,-203.0,0.0003331,12]
[368315170,1751113838334,-2000.0,0.00033593,3]
[368315171,1751113838344,-250.27977225,0.000342,2]
[368315173,1751113838355,-693.9397337,0.000349,31]
[368315174,1751113838365,-578.45,0.00034997,2]
[368315176,1751113838374,-7739.93468787,0.00034999,2]
[368315178,1751113838385,-167.74622995,0.00034999,40]
[368315180,1751113838394,-659.504,0.00034999,40]
[368315183,1751113838404,-73470.50199487,0.00035,2]
[368315185,1751113838415,-1577.81670185,0.00035,50]
[368315186,1751113838426,-150.0,0.0003501,2]
[368315188,1751113838435,-200.0,0.00035015,7]
[368315191,1751113838447,-693.93973369,0.0003521,32]
[368315192,1751113838459,-693.93973369,0.00035521,33]
[368315195,1751113838468,-165.72,0.00035533,2]
[368315197,1751113838477,-167.28,0.00035603,2]
[368315199,1751113838487,-1000.0,0.00035636,2]
[368315200,1751113838496,-188.26,0.00035644,30]
[368315203,1751113838506,-1938.42,0.00035669,2]
[368315204,1751113838515,-666.0,0.00035697,2]
[368315207,1751113838524,-491.979312,0.00035772,16]
[368315208,1751113838534,-3297.89,0.000358,2]
[368315211,1751113838543,-693.93973369,0.00035831,33]
[368315212,1751113838552,-500.0,0.00035832,2]
[368315215,1751113838561,-462.59,0.00035841,2]
[368315217,1751113838571,-462.59,0.00035841,2]
[368315218,1751113838580,-911.92,0.00035978,2]
[368315240,1751113838770,-150.0,0.00035978,2]
[368315242,1751113838780,-342.09,0.00035978,2]
[368315244,1751113838789,-355.35,0.00035978,2]
[368315246,1751113838799,-300.0,0.00035978,2]
[368315249,1751113838808,-300.62,0.00035978,2]
[368315250,1751113838817,-327.46,0.00035978,2]
[368315253,1751113838827,-150.0,0.00035978,2]
[368315255,1751113838836,-150.0,0.00035978,2]
[368315257,1751113838845,-169.0,0.00036,30]
[368315259,1751113838855,-693.93973369,0.00036141,34]
[368315261,1751113838864,-203.0,0.00036276,17]
[368315263,1751113838873,-1102.52766,0.0003637,2]
[368315265,1751113838882,-693.93973369,0.00036452,34]
[368315267,1751113838891,-370.86975,0.0003646,120]
[368315269,1751113838900,-231.38364735,0.000365,11]
[368315271,1751113838910,-636.8617576,0.00036587,2]
[368315273,1751113838919,-154.14,0.000366,31]
[368315275,1751113838928,-154.14,0.000366,31]
[368315277,1751113838938,-154.14,0.000366,31]
[368315279,1751113838946,-154.14,0.000366,31]
[368315281,1751113838956,-1157.94268049,0.00036678,2]
[368315283,1751113838964,-255.81859941,0.00036678,2]
[368315285,1751113838974,-115983.7709,0.00036678,2]
[368315287,1751113838983,-1207.91623599,0.00036687,2]
[368315289,1751113838992,-159.09124853,0.00036687,15]
[368315291,1751113839001,-19406.4741,0.00036688,2]
[368315292,1751113839011,-1000.0,0.00036688,2]
[368315295,1751113839021,-180.79090852,0.00036699,2]
[368315297,1751113839030,-231.35,0.000367,12]
[368315298,1751113839040,-1953.52,0.000367,2]
[368315301,1751113839049,-693.93973369,0.00036762,35]
[368315303,1751113839058,-500.0,0.00036768,15]
[368315304,1751113839068,-445.87516597,0.00036768,15]
[368315306,1751113839077,-500.0,0.00036768,15]
[368315309,1751113839087,-548.23221399,0.00036768,15]
[368315311,1751113839096,-500.0,0.00036768,15]
[368315312,1751113839105,-500.0,0.00036768,15]
[368315314,1751113839115,-500.0,0.00036768,15]
[368315317,1751113839124,-703.67157026,0.00036768,3]
[368315319,1751113839133,-2521.47422706,0.00036768,31]
[368315320,1751113839142,-5529310.73677172,0.00036769,7]
[368315323,1751113839158,-14182.0,0.00036769,7]
[368315326,1751113839170,-5589.97771579,0.00036769,7]
[368315328,1751113839181,-373.02802591,0.00036769,7]
[368315330,1751113839192,-4213.4,0.00036769,7]
[368315332,1751113839207,-321.61458949,0.00036769,7]
[368315334,1751113839221,-3912.2173612,0.00036769,7]
[368315335,1751113839241,-1044.14172132,0.00036769,7]
[368315408,1751113840064,-77477.04236322,0.00036769,7]
[368315450,1751113840448,-22720.49837055,0.00036769,7]
[368315452,1751113840459,-1261.29652522,0.00036769,7]
[368315454,1751113840470,-6581.58088275,0.00036769,7]
[368315456,1751113840481,-264.94233383,0.00036769,7]
[368315720,1751113843035,-1044.04224972,0.00036769,7]
[368315723,1751113843047,-338.87760312,0.00036769,7]
[368315729,1751113843098,-12262.31589344,0.00036769,7]
[368315731,1751113843110,-5789.2338,0.00036769,7]
[368315737,1751113843158,-93.65160552,0.00036769,7]
[368315741,1751113843181,-854.04002,0.00036769,7]
[368316519,1751114854317,150.0,0.0002,2]
[368316520,1751114927359,155.32,0.00013699,2]
[368316524,1751115032237,-155.32,0.00021918,2]
[368316525,1751115032246,-159.03689045,0.00025,2]
[368316526,1751115032255,-72.77533488,0.00030137,2]
[368316527,1751115032350,-82.54466512,0.00030137,2]
[368316528,1751115032360,-203.0,0.00032921,2]
[368316529,1751115032370,-815.0,0.00035499,3]
[368316530,1751115032379,-333.0,0.00035499,3]
[368316531,1751115032390,-318.44394256,0.000355,4]
[368316532,1751115032403,-6421.04946845,0.000355,4]
[368316533,1751115032455,-1165.78538517,0.000355,4]
[368316534,1751115032467,-4600.65315662,0.000355,4]
[368316535,1751115032476,-289.22,0.00035593,2]
[368316536,1751115032485,-368.984484,0.00035685,16]
[368316537,1751115032496,-1000.0,0.00035751,2]
[368316538,1751115032505,-165.45,0.00035761,2]
[368316539,1751115032514,-469.66,0.00035778,2]
[368316540,1751115032524,-400.0,0.000358,7]
[368316541,1751115032533,-555.15178701,0.000359,33]
[368316542,1751115032544,-168.0,0.00035914,2]
[368316543,1751115032553,-170.0,0.00036,30]
[368316544,1751115032563,-555.15178695,0.00036141,34]
[368316545,1751115032572,-203.0,0.00036306,9]
[368316546,1751115032582,-555.15178695,0.00036383,34]
[368316547,1751115032591,-198.3,0.00036487,11]
[368316548,1751115032601,-198.3,0.0003659,11]
[368316549,1751115032611,-154.15,0.000366,31]
[368316550,1751115032620,-154.15,0.000366,31]
[368316551,1751115032629,-154.15,0.000366,31]
[368316552,1751115032639,-154.15,0.000366,31]
[368316553,1751115032648,-555.15178695,0.00036624,35]
[368316554,1751115032658,-300.0,0.00036655,2]
[368316555,1751115032667,-500.0,0.00036655,2]
[368316557,1751115032676,-500.0,0.00036655,2]
[368316559,1751115032685,-500.0,0.00036655,2]
[368316561,1751115032694,-379.92926221,0.00036655,2]
[368316563,1751115032704,-500.0,0.00036655,2]
[368316565,1751115032714,-500.0,0.00036655,2]
[368316566,1751115032724,-200.0,0.00036655,2]
[368316567,1751115032734,-1354.10757217,0.00036667,2]
[368316568,1751115032744,-159.09124853,0.00036667,15]
[368316569,1751115032754,-160.13002607,0.00036667,2]
[368316570,1751115032764,-527.603,0.00036668,46]
[368316571,1751115032774,-1207.91623599,0.00036668,2]
[368316572,1751115032787,-1000.0,0.00036668,2]
[368316573,1751115032796,-5000.0,0.00036669,2]
[368316574,1751115032808,-19406.4741,0.00036677,2]
[368316575,1751115032818,-156.03122937,0.00036678,9]
[368316576,1751115032827,-180.79090852,0.00036687,2]
[368316577,1751115032836,-180.98356271,0.00036687,9]
[368316578,1751115032847,-918.77305,0.000367,2]
[368316579,1751115032857,-500.0,0.00036748,15]
[368316580,1751115032867,-548.23221399,0.00036748,15]
[368316581,1751115032878,-445.87516597,0.00036748,15]
[368316582,1751115032889,-500.0,0.00036748,15]
[368316583,1751115032899,-500.0,0.00036748,15]
[368316584,1751115032911,-500.0,0.00036748,15]
[368316585,1751115032921,-500.0,0.00036748,15]
[368316586,1751115032932,-117032.63800568,0.00036749,7]
[368316588,1751115038143,-2145.5032573,0.00036749,7]
[368316589,1751115038155,-32682.27681219,0.00036749,7]
[368316590,1751115038205,-2825.6909516,0.00036749,7]
[368316591,1751115038218,-1092.6,0.00036749,7]
[368316592,1751115038310,-854.00661147,0.00036749,7]
[368316593,1751115038366,-5560863.07217573,0.00036749,7]
[368316594,1751115038422,-1003.470445,0.00036749,7]
[368316596,1751115038434,-4194.872225,0.00036749,7]
[368316598,1751115038445,-889.05553759,0.00036749,7]
[368316600,1751115038456,-779.79811136,0.00036749,7]
[368316756,1751115040311,-11964.10914325,0.00036749,7]
[368316768,1751115040421,-2221.68705292,0.00036749,7]
[368316781,1751115040531,-30249.69925139,0.00036749,7]
[368317079,1751115043551,-215.0,0.00032921,2]
[368317081,1751115043562,-78.6872454,0.00036748,2]
[368317360,1751115046261,-111.28082775,0.00036748,2]
[368317362,1751115046270,-172.79242248,0.00036749,7]
[368317373,1751115046368,-691.70404442,0.00036749,7]
[368317386,1751115046477,-684.64800033,0.00036749,7]
[368318287,1751115245335,250.0,0.00015,2]
[368318345,1751115871898,1866.5,0.000267,10]
[368318347,1751115950593,155.32,0.00013699,2]
[368318360,1751116231298,-155.32,0.00023973,2]
[368318361,1751116231308,-310.95719594,0.00028081,2]
[368318362,1751116231416,-262.25352113,0.00028081,2]
[368318363,1751116231428,-434.41576635,0.00028081,2]
[368318364,1751116231439,-90.09127591,0.00028181,2]
[368318365,1751116231465,-114.90872409,0.00028181,2]
[368318366,1751116231476,-205.0,0.00031074,7]
[368318367,1751116231485,-442.0134788,0.00033008,2]
[368318368,1751116231495,-1401.93535342,0.00033559,2]
[368318369,1751116231504,-721.16996809,0.00033709,2]
[368318370,1751116231513,-596.78817102,0.000339,29]
[368318371,1751116231522,-205.0,0.00033966,12]
[368318372,1751116231532,-596.78817097,0.0003421,30]
[368318373,1751116231541,-155.32,0.00034247,2]
[368318374,1751116231550,-855.94,0.00034328,120]
[368318375,1751116231560,-150.0,0.00034341,2]
[368318376,1751116231570,-1600.0,0.00034346,3]
[368318377,1751116231579,-377.06,0.00034346,2]
[368318378,1751116231589,-7621.45450633,0.00034347,2]
[368318379,1751116231600,-13249.69920166,0.00034347,2]
[368318380,1751116231612,-811.93629201,0.00034347,2]
[368318381,1751116231622,-1000.0,0.00034352,2]
[368318382,1751116231631,-666.0,0.00034352,2]
[368318383,1751116231640,-596.78817097,0.00034521,31]
[368318384,1751116231650,-0.4380282,0.00034728,120]
[368318385,1751116231661,-882.9119718,0.00034728,120]
[368318386,1751116231670,-823.03857311,0.00034731,2]
[368318387,1751116231682,-1115.38142689,0.00034731,2]
[368318389,1751116231691,-200.0,0.00034767,7]
[368318391,1751116231700,-596.78817097,0.00034831,31]
[368318393,1751116231710,-228.39,0.000349,2]
[368318395,1751116231719,-854.75,0.000349,2]
[368318397,1751116231728,-3472.84,0.000349,30]
[368318399,1751116231738,-1340.5,0.00034933,2]
[368318401,1751116231747,-1210.37978131,0.00035028,2]
[368318403,1751116231757,-596.78817097,0.00035141,32]
[368318405,1751116231767,-3747.19,0.00035232,2]
[368318407,1751116231776,-608.819,0.00035232,41]
[368318409,1751116231786,-245.39,0.00035279,2]
[368318411,1751116231795,-156.0,0.00035311,2]
[368318413,1751116231804,-884.0,0.00035311,2]
[368318415,1751116231813,-207.4,0.0003536,2]
[368318417,1751116231823,-3988.152672,0.0003536,2]
[368318419,1751116231832,-1037.58770125,0.00035381,2]
[368318432,1751116231940,-300.0,0.00035381,2]
[368318608,1751116237362,-1162.0,0.00035311,2]
[368318609,1751116237373,-1335.1,0.00035381,2]
[368318610,1751116237384,-764.956,0.00035381,2]
[368318611,1751116237440,-20462.35629875,0.00035381,2]
[368318612,1751116237450,-250.0,0.00035389,2]
[368318613,1751116237459,-892.43,0.00035389,2]
[368318614,1751116237470,-596.78817097,0.00035452,32]
[368318615,1751116237482,-500.0,0.00035477,2]
[368318616,1751116237491,-164.37,0.00035561,2]
[368318617,1751116237502,-602.35,0.00035561,2]
[368318618,1751116237512,-161.89,0.00035612,2]
[368318619,1751116237521,-1351.01813638,0.0003562,2]
[368318620,1751116237530,-188.26,0.00035644,30]
[368318621,1751116237540,-1498.964124,0.00035645,16]
[368318622,1751116237549,-596.78817097,0.00035762,33]
[368318623,1751116237559,-1200.0,0.000359,13]
[368318624,1751116237568,-921.0,0.00035912,7]
[368318625,1751116237578,-168.49547577,0.00035998,2]
[368318626,1751116237588,-484.95765846,0.00035998,2]
[368318627,1751116237598,-209.6893,0.00035999,2]
[368318629,1751116237607,-169.0,0.00036,30]
[368318631,1751116237617,-596.78817097,0.00036072,34]
[368318633,1751116237627,-500.0,0.00036073,5]
[368318634,1751116237636,-500.0,0.00036073,5]
[368318635,1751116237646,-500.0,0.0003608,7]
[368318636,1751116237655,-500.0,0.0003608,7]
[368318637,1751116237665,-317.68359563,0.0003608,7]
[368318638,1751116237674,-2521.47422706,0.0003608,31]
[368318639,1751116237684,-5663462.18852392,0.00036081,7]
[368318842,1751116239573,-1319.93620008,0.00036081,7]
[368318845,1751116239585,-2650.0,0.00036081,7]
[368318847,1751116239596,-2260.69766461,0.00036081,7]
[368318851,1751116239629,-978.73705445,0.00036081,7]
[368318869,1751116239795,-3434.44,0.00036081,7]
[368318872,1751116239807,-911.93905103,0.00036081,7]
[368318877,1751116239851,-264.78649278,0.00036081,7]
[368318880,1751116239862,-1734.85625653,0.00036081,7]
[368318894,1751116239981,-1282.0,0.00036081,7]
[368319131,1751116242354,-340.60463288,0.00036081,7]
[368319133,1751116242366,-481.47097802,0.00036081,7]
[368319135,1751116242378,-968.2363252,0.00036081,7]
[368319139,1751116242410,-603.32475265,0.00036081,7]
[368319142,1751116242422,-293.75433028,0.00036081,7]
[368319144,1751116242433,-71854.62262444,0.00036081,7]
[368319146,1751116242446,-12385.88327981,0.00036081,7]
[368319148,1751116242457,-1032.67775288,0.00036081,7]
[368319151,1751116242468,-326.72508451,0.00036081,7]
[368319167,1751116242612,-1227.98738991,0.00036081,7]
[368319169,1751116242624,-136858.30551254,0.00036081,7]
[368319171,1751116242635,-3119.33276107,0.00036081,7]
[368319174,1751116242651,-245183.48796586,0.00036081,7]
[368319475,1751116245645,-159.09124852,0.00035988,15]
[368319477,1751116245655,-31503.47981602,0.00036081,7]
[368319480,1751116245670,-151860.33561757,0.00036081,7]
[368319482,1751116245681,-2591.70567168,0.00036081,7]
[368319484,1751116245693,-298.67000001,0.00036081,7]
[368319487,1751116245708,-2065.95602289,0.00036081,7]
[368319489,1751116245720,-20483.56838017,0.00036081,7]
[368319491,1751116245731,-857.30599154,0.00036081,7]
[368319495,1751116245754,-16876.85264204,0.00036081,7]
[368319497,1751116245766,-563.69196566,0.00036081,7]
[368319499,1751116245778,-1018.2948848,0.00036081,7]
[368319501,1751116245789,-5338.09949652,0.00036081,7]
[368319505,1751116245812,-7210.78362197,0.00036081,7]
[368319752,1751116982176,155.32,0.00013699,2]
[368319754,1751117083033,978.0,0.00027397,120]
[368319759,1751117277272,2708.18391906,0.00014,2]
[368319760,1751117277294,10000.0,0.00014,2]
[368319761,1751117277315,10000.0,0.00014,2]
[368319762,1751117277335,10000.0,0.00014,2]
[368319763,1751117277356,10000.0,0.00014,2]
[368319764,1751117277377,7291.81608094,0.00014,2]
[368319777,1751117369120,-217.36005477,0.000232,2]
[368319786,1751117431567,-1608.75,0.000232,2]
[368319787,1751117431688,-1325.54928151,0.000232,2]
[368319788,1751117431700,-347.68045217,0.000232,2]
[368319789,1751117431710,-200.85745528,0.00023999,2]
[368319790,1751117431722,-999.14254472,0.00023999,2]
[368319791,1751117431733,-618.23396897,0.00024,5]
[368319792,1751117431750,-300.0,0.00024,5]
[368319793,1751117431802,-308.52586663,0.00024,5]
[368319794,1751117431860,-2038.44013977,0.00024,5]
[368319795,1751117431872,-480.71,0.00024,5]
[368319796,1751117431884,-663.0,0.00024,5]
[368319797,1751117431898,-591.09002463,0.00024,5]
[368319798,1751117431908,-2449.498682,0.00024527,2]
[368319799,1751117431917,-4999.999999,0.0002465,2]
[368319800,1751117431931,-700.0,0.00025,2]
[368319801,1751117431941,-1225.0,0.00026145,2]
[368319802,1751117431950,-155.32,0.00027397,2]
[368319803,1751117431960,-1300.0,0.00029,2]
[368319804,1751117431969,-375.61129437,0.000301,22]
[368319815,1751117437519,-121.71218168,0.000301,22]
[368319816,1751117437529,-497.3234758,0.000301,22]
[368319817,1751117437540,-497.3234758,0.000301,22]
[368319818,1751117437550,-497.3234758,0.000301,22]
[368319819,1751117437559,-497.3234758,0.000301,22]
[368319820,1751117437568,-497.3234758,0.00030314,22]
[368319821,1751117437578,-214.0,0.00030539,2]
[368319822,1751117437587,-497.3234758,0.00030797,23]
[368319823,1751117437596,-119.34696352,0.0003121,2]
[368319824,1751117437607,-1380.65303448,0.0003121,2]
[368319825,1751117437619,-497.3234758,0.00031279,24]
[368319826,1751117437631,-497.3234758,0.00031762,25]
[368319827,1751117437640,-497.3234758,0.00032245,26]
[368319828,1751117437651,-497.3234758,0.00032728,27]
[368319829,1751117437661,-497.3234758,0.0003321,28]
[368319830,1751117437670,-168.0,0.00033396,2]
[368319831,1751117437680,-168.0,0.00033621,2]
[368319832,1751117437689,-497.3234758,0.00033693,29]
[368319833,1751117437698,-300.0,0.00033729,3]
[368319834,1751117437708,-150.6,0.00033746,2]
[368319835,1751117437719,-150.0,0.00033834,2]
[368319836,1751117437729,-1985.0,0.00033907,2]
[368319837,1751117437739,-497.3234758,0.00034176,30]
[368319839,1751117437946,-214.0,0.00034222,9]
[368319840,1751117437957,-666.0,0.00034225,2]
[368319841,1751117437967,-231.0,0.00034242,2]
[368319843,1751117437976,-214.62,0.0003431,2]
[368319846,1751117437986,-334.0,0.00034341,2]
[368319849,1751117437996,-1852.42,0.0003438,2]
[368319852,1751117438005,-417.9,0.00034387,2]
[368319855,1751117438014,-505.0,0.00034438,2]
[368319857,1751117438023,-1050.35,0.00034503,2]
[368319859,1751117438032,-200.0,0.00034654,7]
[368319861,1751117438042,-497.3234758,0.00034659,31]
[368319862,1751117438053,-2000.0,0.00034716,30]
[368319863,1751117438063,-200.0,0.00034762,2]
[368319864,1751117438072,-602.35,0.00034828,2]
[368319865,1751117438082,-154.82,0.00034874,2]
[368319866,1751117438091,-1003.13,0.00034874,2]
[368319868,1751117438100,-487.056,0.000349,40]
[368319871,1751117438109,-207.4,0.00034953,2]
[368319872,1751117438119,-8410.36510626,0.00034953,2]
[368319877,1751117438157,-806.49089374,0.00034953,2]
[368319879,1751117438167,-14876.62,0.00034974,2]
[368319881,1751117438177,-702.0,0.0003499,2]
[368319883,1751117438186,-168.0,0.00035,2]
[368319885,1751117438196,-65.95512781,0.00035,7]
[368319887,1751117438209,-746.25647171,0.00035,7]
[368319890,1751117438221,-187.78840048,0.00035,7]
[368319891,1751117438231,-267.8311766,0.00035008,2]
[368319894,1751117438243,-923.3351066,0.00035008,2]
[368319904,1751117438328,-794.8233937,0.00035008,2]
[368319909,1751117438369,-1155.788706,0.00035008,2]
[368319911,1751117438381,-4561.47386429,0.00035008,2]
[368319927,1751117438517,-1854.62742481,0.00035008,2]
[368319929,1751117438527,-8167.36,0.0003501,2]
[368319931,1751117438536,-1296.64,0.0003501,2]
[368319933,1751117438545,-9911.52121986,0.00035063,2]
[368319935,1751117438554,-165.88,0.00035071,2]
[368319937,1751117438564,-168.0,0.0003508,2]
[368319939,1751117438573,-250.0,0.00035092,2]
[368319941,1751117438581,-1308.01,0.00035117,2]
[368319943,1751117438591,-10278.247505,0.00035118,2]
[368319944,1751117438600,-166.58,0.00035134,2]
[368319946,1751117438609,-497.3234758,0.00035141,32]
[368319949,1751117438623,-231.0,0.00035151,7]
[368319951,1751117438633,-3699.81997079,0.00035173,2]
[368319953,1751117438642,-1300.0,0.000355,12]
[368319955,1751117438651,-1662.0,0.000355,7]
[368319957,1751117438660,-2600.0,0.000356,12]
[368319959,1751117438671,-497.3234758,0.00035624,33]
[368319960,1751117438680,-1341.76055,0.0003564,2]
[368319963,1751117438691,-188.26,0.00035644,30]
[368319965,1751117438700,-1498.964124,0.00035645,16]
[368319967,1751117438710,-3900.0,0.000357,13]
[368319969,1751117438719,-500.0,0.00035703,2]
[368319971,1751117438728,-636.8617576,0.00035722,2]
[368319973,1751117438737,-921.0,0.00035767,2]
[368319975,1751117438747,-351.62364735,0.0003579,9]
[368319977,1751117438756,-5200.0,0.000358,13]
[368319979,1751117438766,-351.59,0.000358,9]
[368319981,1751117438775,-168.0,0.00035818,2]
[368319983,1751117438785,-1962.72340882,0.00035889,2]
[368319985,1751117438794,-168.49547577,0.00035897,2]
[368319987,1751117438804,-209.6893,0.00035898,2]
[368319989,1751117438813,-150.0,0.00035899,2]
[368319991,1751117438823,-150.0,0.00035899,2]
[368319993,1751117438832,-200.0,0.00035899,2]
[368319995,1751117438841,-150.0,0.00035899,2]
[368319997,1751117438850,-6500.0,0.000359,13]
[368319999,1751117438859,-155.96585917,0.00035973,8]
[368320001,1751117438868,-5630557.22465811,0.00035981,7]
[368320003,1751117438880,-1503.38042292,0.00035981,7]
[368320106,1751117439846,-466.70855462,0.00035981,7]
[368320108,1751117439858,-502.72739949,0.00035981,7]
[368320111,1751117439875,-23383.57615412,0.00035981,7]
[368320397,1751117442661,-491.95238989,0.00035981,7]
[368320399,1751117442673,-20649.37203091,0.00035981,7]
[368320404,1751117442711,-389.26468057,0.00035981,7]
[368320411,1751117442771,-6178.3544746,0.00035981,7]
[368320419,1751117442828,-23467.93190093,0.00035981,7]
[368320712,1751117445683,-168.0,0.0003542,2]
[368320714,1751117445693,-3014.58931446,0.00035981,7]
[368320719,1751117445739,-459.48999997,0.00035981,7]
[368320722,1751117445751,-385.0,0.00035981,7]
[368320724,1751117445762,-844.34532881,0.00035981,7]
[368320726,1751117445773,-12285.19001804,0.00035981,7]
[368320730,1751117445800,-29783.48703224,0.00035981,7]
[368320732,1751117445811,-3942.88748003,0.00035981,7]
[368320738,1751117445854,-480.77105184,0.00035981,7]
[368320740,1751117445866,-54574.52597919,0.00035981,7]
[368320746,1751117445912,-1262.52000137,0.00035981,7]
[368320748,1751117445924,-624.94584388,0.00035981,7]
[368320750,1751117445935,-2358.95772199,0.00035981,7]
[368321457,1751117942108,157.03,0.00013699,2]
[368321458,1751117973154,150.0,0.00018101,2]
[368321465,1751118539179,1000.0,0.00026699,10]
[368321476,1751118631803,-157.03,0.00023182,2]
[368321477,1751118631813,-185.34077813,0.00023976,2]
[368321478,1751118631824,-281.99712921,0.00023976,2]
[368321479,1751118631836,-375.94874776,0.00023976,2]
[368321480,1751118631846,-1648.79897296,0.00025501,3]
[368321481,1751118631857,-351.20102704,0.00025501,3]
[368321482,1751118631867,-212.0,0.00025799,2]
[368321483,1751118631877,-555.17954345,0.00026698,2]
[368321484,1751118631887,-151.0,0.00029,120]
[368321485,1751118631896,-180.0,0.00029,120]
[368321486,1751118631906,-212.0,0.00030074,9]
[368321487,1751118631915,-271.79306255,0.000309,23]
[368321488,1751118631924,-259.67636696,0.00031279,24]
[368321489,1751118631940,-12.11669539,0.00031279,24]
[368321490,1751118631951,-271.79306235,0.00031659,25]
[368321491,1751118631960,-51.96624255,0.000318,2]
[368321492,1751118631972,-198.3135297,0.000318,2]
[368321493,1751118631981,-69.9514703,0.00032038,26]
[368321494,1751118632034,-201.84159205,0.00032038,26]
[368321495,1751118632043,-271.0,0.00032068,7]
[368321496,1751118632053,-271.79306235,0.00032417,26]
[368321497,1751118632063,-271.0,0.0003248,2]
[368321498,1751118632073,-157.03,0.00032666,2]
[368321499,1751118632082,-150.6,0.00032753,2]
[368321500,1751118632092,-271.79306235,0.00032797,27]
[368321501,1751118632101,-271.0,0.00032879,2]
[368321502,1751118632111,-521.545,0.00032934,34]
[368321503,1751118632121,-167.74622995,0.00032934,34]
[368321504,1751118632131,-1195.7010533,0.00033126,2]
[368321515,1751118637737,-7833.4039794,0.00033126,2]